fUST/lending_fUST_20240923
["ID","MTS","AMOUNT","RATE_DAILY","PERIOD"]
[338911630,1727063446039,-5565.157389,0.0003451,14]
[338911631,1727063446049,-5565.157389,0.0003451,14]
[338911632,1727063446059,-5565.157389,0.0003451,14]
[338911633,1727063446068,-151.0,0.0003451,14]
[338911634,1727063446077,-151.0,0.0003451,14]
[338911635,1727063446087,-151.0,0.0003451,14]
[338911636,1727063446096,-151.0,0.0003451,14]
[338911637,1727063446105,-278.905538,0.0003451,14]
[338911638,1727063446114,-168.169752,0.0003451,14]
[338911639,1727063446125,-168.169752,0.0003451,14]
[338911640,1727063446135,-2425.313693,0.0003451,14]
[338911642,1727063446144,-2425.313693,0.0003451,14]
[338911643,1727063446154,-2425.313693,0.0003451,14]
[338911644,1727063446163,-2425.313693,0.0003451,14]
[338911645,1727063446173,-2425.313693,0.0003451,14]
[338911646,1727063446183,-2425.313693,0.0003451,14]
[338911647,1727063446193,-160.0,0.00034519,10]
[338911649,1727063446202,-160.0,0.00034519,10]
[338911650,1727063446212,-151.862581,0.0003452,14]
[338911651,1727063446222,-151.0,0.0003452,14]
[338911652,1727063446231,-151.0,0.0003452,14]
[338911653,1727063446242,-151.0,0.0003452,14]
[338911654,1727063446252,-151.0,0.0003452,14]
[338911655,1727063446263,-151.0,0.0003452,14]
[338911656,1727063446272,-151.0,0.0003452,14]
[338911657,1727063446282,-193.052965,0.0003452,14]
[338911658,1727063446291,-193.052965,0.0003452,14]
[338911659,1727063446302,-151.0,0.0003452,2]
[338911660,1727063446312,-235.277402,0.0003452,14]
[338911661,1727063446322,-151.0,0.0003452,14]
[338911662,1727063446331,-912.126487,0.0003452,14]
[338911663,1727063446342,-912.126487,0.0003452,14]
[338911664,1727063446351,-236.684737,0.0003452,14]
[338911665,1727063446361,-236.684737,0.0003452,14]
[338911666,1727063446372,-1194.198451,0.0003452,14]
[338911667,1727063446382,-1194.198451,0.0003452,14]
[338911668,1727063446392,-771.75103,0.0003452,14]
[338911669,1727063446405,-771.75103,0.0003452,14]
[338911670,1727063446414,-2190.78353,0.0003452,14]
[338911671,1727063446424,-2190.78353,0.0003452,14]
[338911672,1727063446434,-513.671216,0.0003452,14]
[338911673,1727063446443,-513.671216,0.0003452,14]
[338911674,1727063446453,-470.531574,0.0003452,14]
[338911675,1727063446463,-470.531574,0.0003452,14]
[338911676,1727063446472,-151.0,0.0003452,14]
[338911677,1727063446482,-151.0,0.0003452,14]
[338911678,1727063446492,-151.0,0.0003452,14]
[338911679,1727063446503,-239.944092,0.0003452,14]
[338911680,1727063446513,-239.944092,0.0003452,14]
[338911681,1727063446522,-151.0,0.0003452,14]
[338911682,1727063446531,-461.902746,0.0003452,14]
[338911683,1727063446541,-151.0,0.0003452,14]
[338911684,1727063446551,-461.902746,0.0003452,14]
[338911685,1727063446561,-506.268534,0.0003452,14]
[338911686,1727063446570,-506.268534,0.0003452,14]
[338911687,1727063446580,-151.0,0.0003452,14]
[338911688,1727063446589,-164.045047,0.0003452,14]
[338911689,1727063446599,-164.045047,0.0003452,14]
[338911690,1727063446610,-231.928708,0.0003452,14]
[338911691,1727063446620,-231.928708,0.0003452,14]
[338911692,1727063446629,-787.241529,0.0003452,14]
[338911693,1727063446639,-787.241529,0.0003452,14]
[338911694,1727063446648,-1056.260539,0.0003452,14]
[338911695,1727063446659,-202.299495,0.0003452,14]
[338911696,1727063446668,-1056.260539,0.0003452,14]
[338911697,1727063446678,-202.299495,0.0003452,14]
[338911698,1727063446687,-152.199984,0.0003452,14]
[338911699,1727063446697,-1141.045438,0.0003452,14]
[338911700,1727063446707,-1141.045438,0.0003452,14]
[338911701,1727063446717,-152.199984,0.0003452,14]
[338911702,1727063446726,-151.0,0.0003452,14]
[338911703,1727063446736,-151.0,0.0003452,14]
[338911704,1727063446745,-5565.157389,0.0003452,14]
[338911705,1727063446755,-5565.157389,0.0003452,14]
[338911706,1727063446764,-168.169752,0.0003452,14]
[338911707,1727063446773,-168.169752,0.0003452,14]
[338911708,1727063446783,-1000.0,0.00034542,5]
[338911709,1727063446792,-1000.0,0.00034542,5]
[338911710,1727063446806,-500.0,0.00034573,5]
[338911711,1727063446815,-501.36625707,0.000346,5]
[338911712,1727063446825,-500.0,0.000346,5]
[338911713,1727063446835,-500.0,0.000346,5]
[338911714,1727063446846,-151.0,0.00034603,120]
[338911715,1727063446855,-333.68536315,0.00034678,2]
[338911716,1727063446865,-306.5423384,0.00034877,2]
[338911717,1727063446878,-150.112233,0.000349,10]
[338911718,1727063446888,-172.31696989,0.00035038,7]
[338911719,1727063446898,-380.55321,0.00035099,2]
[338911720,1727063446908,-21796.42,0.000351,14]
[338911721,1727063446918,-5021.89,0.000351,14]
[338911722,1727063446928,-8925.75,0.000351,14]
[338911723,1727063446939,-350.24,0.000351,30]
[338911724,1727063446948,-168.169752,0.000351,14]
[338911725,1727063446958,-168.169752,0.000351,14]
[338911726,1727063446967,-150.112233,0.000353,8]
[338911727,1727063446977,-151.0,0.00035435,15]
[338911728,1727063446987,-1361.28,0.000356,3]
[338911729,1727063446996,-251.63848766,0.00035601,14]
[338911730,1727063447006,-190.67883564,0.00035615,2]
[338911731,1727063447016,-1082.22424996,0.00035615,2]
[338911732,1727063447025,-400.0,0.00035616,2]
[338911733,1727063447035,-1320.809252,0.00035616,120]
[338911734,1727063447044,-151.0,0.00035699,120]
[338911735,1727063447054,-150.112233,0.000357,8]
[338911736,1727063447063,-652.38,0.000357,14]
[338911737,1727063447073,-893.30513673,0.00035942,5]
[338911738,1727063447083,-1000.0,0.0003597,5]
[338911739,1727063447093,-753.67579758,0.0003597,5]
[338911740,1727063447103,-500.0,0.00035972,10]
[338911741,1727063447113,-525.763,0.00035994,2]
[338911742,1727063447123,-153.487,0.00035994,2]
[338911743,1727063447132,-1296.755,0.00035994,2]
[338911744,1727063447142,-150.112233,0.00036,9]
[338911745,1727063447152,-150.112233,0.000361,9]
[338911746,1727063447162,-623.0,0.000361,2]
[338911747,1727063447171,-333.68536315,0.00036122,2]
[338911748,1727063447182,-307.7975011,0.00036247,2]
[338911749,1727063447192,-208.9234097,0.00036247,2]
[338911750,1727063447202,-153.0,0.00036247,2]
[338911751,1727063447212,-154.5341713,0.00036247,2]
[338911752,1727063447222,-154.197832,0.00036247,2]
[338911753,1727063447231,-213.6823897,0.00036247,2]
[338911754,1727063447240,-150.112233,0.000363,9]
[338911755,1727063447250,-384.85329988,0.00036398,7]
[338911756,1727063447260,-150.112233,0.000365,10]
[338911757,1727063447269,-150.112233,0.000367,8]
[338911758,1727063447279,-500.0,0.00036794,10]
[338911759,1727063447288,-150.112233,0.000368,9]
[338911760,1727063447298,-21796.42,0.000368,14]
[338911761,1727063447307,-5021.89,0.000368,14]
[338911762,1727063447316,-8925.75,0.000368,14]
[338911763,1727063447325,-350.24,0.000368,30]
[338911764,1727063447335,-151.0,0.0003685,15]
[338911765,1727063447345,-151.0,0.00036904,120]
[338911766,1727063447354,-150.112233,0.00037,9]
[338911767,1727063447364,-1500.0,0.00037047,5]
[338911768,1727063447373,-1073.20555643,0.00037047,5]
[338911769,1727063447383,-151.0,0.00037123,120]
[338911770,1727063447393,-150.112233,0.000372,10]
[338911771,1727063447402,-652.38,0.000373,14]
[338911772,1727063447413,-168.169752,0.000373,14]
[338911773,1727063447422,-168.169752,0.000373,14]
[338911774,1727063447432,-613.22,0.00037306,120]
[338911775,1727063447441,-500.0,0.00037306,120]
[338911776,1727063447450,-500.0,0.00037306,120]
[338911777,1727063447460,-500.0,0.00037306,120]
[338911778,1727063447469,-500.0,0.00037306,120]
[338911779,1727063447478,-500.0,0.00037306,120]
[338911780,1727063447488,-500.0,0.00037306,120]
[338911781,1727063447497,-500.0,0.00037306,120]
[338911782,1727063447507,-300.59,0.00037306,120]
[338911783,1727063447519,-152.43480147,0.00037364,21]
[338911784,1727063447528,-151.0,0.0003738,14]
[338911785,1727063447538,-151.0,0.0003739,14]
[338911786,1727063447547,-153.203848,0.0003739,14]
[338911787,1727063447558,-151.0,0.0003739,14]
[338911788,1727063447568,-151.0,0.0003739,14]
[338911789,1727063447647,-771.75103,0.0003739,14]
[338911790,1727063447658,-771.75103,0.0003739,14]
[338911791,1727063447668,-2190.78353,0.0003739,14]
[338911792,1727063447678,-2190.78353,0.0003739,14]
[338911793,1727063447688,-470.531574,0.0003739,14]
[338911794,1727063447698,-470.531574,0.0003739,14]
[338911795,1727063447707,-151.0,0.0003739,14]
[338911796,1727063447716,-239.944092,0.0003739,14]
[338911797,1727063447726,-239.944092,0.0003739,14]
[338911798,1727063447736,-151.0,0.0003739,14]
[338911799,1727063447747,-461.902746,0.0003739,14]
[338911800,1727063447757,-151.0,0.0003739,14]
[338911801,1727063447767,-461.902746,0.0003739,14]
[338911802,1727063447777,-506.268534,0.0003739,14]
[338911803,1727063447787,-506.268534,0.0003739,14]
[338911804,1727063447797,-151.0,0.0003739,14]
[338911805,1727063447809,-164.045047,0.0003739,14]
[338911806,1727063447819,-164.045047,0.0003739,14]
[338911807,1727063447828,-231.928708,0.0003739,14]
[338911808,1727063447838,-231.928708,0.0003739,14]
[338911810,1727063447848,-202.299495,0.0003739,14]
[338911811,1727063447858,-202.299495,0.0003739,14]
[338911812,1727063447868,-1000.0,0.0003739,28]
[338911814,1727063447879,-1000.0,0.0003739,28]
[338911815,1727063447889,-1000.0,0.0003739,28]
[338911816,1727063447898,-1000.0,0.0003739,28]
[338911817,1727063447909,-1000.0,0.0003739,28]
[338911818,1727063447919,-1000.0,0.0003739,28]
[338911819,1727063447928,-1000.0,0.0003739,28]
[338911820,1727063447939,-1000.0,0.0003739,28]
[338911821,1727063447948,-1000.0,0.0003739,28]
[338911822,1727063447958,-1000.0,0.0003739,28]
[338911823,1727063447967,-1000.0,0.0003739,28]
[338911824,1727063447977,-1000.0,0.0003739,28]
[338911825,1727063447986,-1000.0,0.0003739,28]
[338911826,1727063447996,-1000.0,0.0003739,28]
[338911827,1727063448006,-1000.0,0.0003739,28]
[338911828,1727063448016,-1000.0,0.0003739,28]
[338911829,1727063448026,-1000.0,0.0003739,28]
[338911830,1727063448035,-1000.0,0.0003739,28]
[338911831,1727063448045,-1000.0,0.0003739,28]
[338911832,1727063448055,-1000.0,0.0003739,28]
[338911833,1727063448064,-1000.0,0.0003739,28]
[338911834,1727063448075,-1000.0,0.0003739,28]
[338911835,1727063448084,-1000.0,0.0003739,28]
[338911836,1727063448094,-1000.0,0.0003739,28]
[338911837,1727063448103,-1000.0,0.0003739,28]
[338911838,1727063448114,-1000.0,0.0003739,28]
[338911839,1727063448124,-1000.0,0.0003739,28]
[338911840,1727063448134,-1000.0,0.0003739,28]
[338911841,1727063448143,-1000.0,0.0003739,28]
[338911842,1727063448154,-1000.0,0.0003739,28]
[338911843,1727063448163,-1000.0,0.0003739,28]
[338911844,1727063448173,-1000.0,0.0003739,28]
[338911845,1727063448183,-1000.0,0.0003739,28]
[338911846,1727063448193,-1000.0,0.0003739,28]
[338911847,1727063448202,-1000.0,0.0003739,28]
[338911848,1727063448212,-1000.0,0.0003739,28]
[338911849,1727063448222,-1000.0,0.0003739,28]
[338911850,1727063448232,-1000.0,0.0003739,28]
[338911851,1727063448242,-1000.0,0.0003739,28]
[338911852,1727063448251,-1000.0,0.0003739,28]
[338911853,1727063448262,-1000.0,0.0003739,28]
[338911854,1727063448272,-1000.0,0.0003739,28]
[338911855,1727063448282,-1000.0,0.0003739,28]
[338911856,1727063448291,-517.107956,0.0003739,28]
[338911857,1727063448301,-152.199984,0.0003739,14]
[338911858,1727063448310,-152.199984,0.0003739,14]
[338911859,1727063448320,-151.0,0.0003739,14]
[338911860,1727063448329,-290.789694,0.0003739,14]
[338911861,1727063448339,-5565.157389,0.0003739,14]
[338911862,1727063448349,-5565.157389,0.0003739,14]
[338911863,1727063448359,-168.169752,0.0003739,14]
[338911864,1727063448368,-168.169748,0.0003739,14]
[338911865,1727063448378,-160.0,0.00037399,10]
[338911866,1727063448388,-160.41533032,0.00037399,10]
[338911867,1727063448398,-151.0,0.000374,14]
[338911868,1727063448411,-151.0,0.000374,14]
[338911869,1727063448421,-151.0,0.000374,14]
[338911870,1727063448431,-152.340745,0.000374,14]
[338911871,1727063448441,-151.0,0.000374,14]
[338911872,1727063448451,-151.0,0.000374,14]
[338911873,1727063448460,-151.0,0.000374,14]
[338911874,1727063448470,-193.052965,0.000374,14]
[338911875,1727063448480,-193.052965,0.000374,14]
[338911876,1727063448489,-151.0,0.000374,2]
[338911877,1727063448499,-151.0,0.000374,14]
[338911878,1727063448508,-912.126487,0.000374,14]
[338911879,1727063448518,-912.126487,0.000374,14]
[338911880,1727063448528,-236.684737,0.000374,14]
[338911881,1727063448537,-236.684737,0.000374,14]
[338911882,1727063448547,-1194.198451,0.000374,14]
[338911883,1727063448556,-1194.198451,0.000374,14]
[338911884,1727063448566,-513.671216,0.000374,14]
[338911885,1727063448575,-513.671216,0.000374,14]
[338911886,1727063448585,-151.0,0.000374,14]
[338911887,1727063448595,-151.0,0.000374,14]
[338911888,1727063448605,-787.241529,0.000374,14]
[338911889,1727063448614,-787.241529,0.000374,14]
[338911890,1727063448623,-1056.260539,0.000374,14]
[338911891,1727063448632,-1056.260539,0.000374,14]
[338911892,1727063448641,-1141.045438,0.000374,14]
[338911893,1727063448650,-1141.045438,0.000374,14]
[338911894,1727063448662,-333.68536315,0.00037567,2]
[338911895,1727063448671,-150.112233,0.000376,8]
[338911896,1727063448682,-164.46198,0.000376,10]
[338911897,1727063448692,-151.0,0.0003798,14]
[338911898,1727063448702,-1941.969,0.00038,120]
[338911899,1727063448711,-1000.0,0.00038,14]
[338911900,1727063448721,-150.112233,0.00038,9]
[338911901,1727063448732,-150.112233,0.00038,9]
[338911902,1727063448741,-156.04,0.00038,31]
[338911903,1727063448751,-156.04,0.00038,31]
[338911904,1727063448760,-156.04,0.00038,31]
[338911905,1727063448769,-156.04,0.00038,31]
[338911906,1727063448779,-156.04,0.00038,31]
[338911907,1727063448789,-156.04,0.00038,31]
[338911908,1727063448800,-465.30919491,0.00038102,2]
[338911909,1727063448811,-1000.0,0.00038163,2]
[338911910,1727063448821,-727.01054018,0.00038196,2]
[338911911,1727063448830,-151.0,0.000382,14]
[338911912,1727063448839,-151.0,0.000382,14]
[338911913,1727063448849,-151.0,0.000382,14]
[338911914,1727063448858,-164.045047,0.000382,14]
[338911915,1727063448868,-164.045047,0.000382,14]
[338911916,1727063448879,-231.928708,0.000382,14]
[338911917,1727063448889,-231.928708,0.000382,14]
[338911918,1727063448898,-151.0,0.000382,14]
[338911919,1727063448910,-202.299495,0.000382,14]
[338911920,1727063448920,-202.299495,0.000382,14]
[338911921,1727063448929,-184.0,0.000382,13]
[338911922,1727063448938,-13279.18,0.000382,4]
[338911923,1727063448948,-5565.157389,0.000382,14]
[338911924,1727063448958,-5565.157389,0.000382,14]
[338911925,1727063448967,-1000.0,0.00038255,2]
[338911926,1727063448977,-239.944092,0.00038256,14]
[338911927,1727063448987,-239.944092,0.00038256,14]
[338911928,1727063448997,-506.268534,0.00038256,14]
[338911929,1727063449007,-506.268534,0.00038256,14]
[338911930,1727063449016,-152.199984,0.00038256,14]
[338911931,1727063449025,-152.199984,0.00038256,14]
[338911932,1727063449035,-151.0,0.00038256,14]
[338911933,1727063449044,-151.0,0.00038265,15]
[338911934,1727063449053,-771.75103,0.0003829,14]
[338911935,1727063449062,-771.75103,0.0003829,14]
[338911936,1727063449072,-247.07950291,0.0003829,14]
[338911937,1727063449164,-620.377409,0.0003,7]
[338911938,1727063449174,-620.377409,0.00034173,14]
[338911939,1727063449183,-620.377409,0.0003449,14]
[338911940,1727063449193,-117.11012956,0.000345,14]
[338911971,1727064348188,-166.656227,0.0002094,2]
[338911972,1727064348210,-500.0,0.00021,30]
[338911973,1727064348231,-730.3639461,0.00021,30]
[338911974,1727064348251,-237.1331669,0.00021013,2]
[338911975,1727064348274,-250.0,0.00021171,2]
[338911976,1727064348301,-350.085338,0.00021216,2]
[338911977,1727064348328,-250.0,0.00021229,2]
[338911978,1727064348350,-250.0,0.00021287,2]
[338911979,1727064348373,-250.0,0.00021345,2]
[338911980,1727064348395,-143.69338864,0.00021403,2]
[338911981,1727064351448,2904.0462656,0.00013,7]
[338911985,1727064419113,-3000.0,0.00020998,2]
[338911986,1727064419134,-158.39174929,0.00021362,2]
[338911987,1727064419155,-106.30661136,0.00021403,2]
[338911988,1727064419178,-199.61885768,0.00021462,2]
[338911989,1727064434112,-50.38114232,0.00021462,2]
[338911990,1727064434133,-250.0,0.0002152,2]
[338911991,1727064434154,-250.0,0.00021578,2]
[338911992,1727064434174,-291.96117601,0.000216,2]
[338911994,1727064445138,-154.40751559,0.000216,2]
[338911995,1727064453222,-284.79529083,0.000216,2]
[338911999,1727064541284,302.0,0.00025,120]
[338912000,1727064547183,-2268.83601757,0.000216,2]
[338912001,1727064547206,-3000.0,0.0002161,2]
[338912002,1727064547227,-3000.0,0.0002162,2]
[338912003,1727064547252,-300.0,0.00021629,2]
[338912004,1727064547273,-300.0,0.00021629,2]
[338912005,1727064547296,-3979.100824,0.0002163,2]
[338912006,1727064547317,-250.0,0.00021636,2]
[338912007,1727064547340,-250.0,0.00021694,2]
[338912008,1727064547361,-500.29781234,0.000217,2]
[338912009,1727064547381,-250.0,0.00021752,2]
[338912010,1727064547401,-250.0,0.0002181,2]
[338912011,1727064547422,-250.0,0.00021868,2]
[338912012,1727064547441,-168.2093062,0.00021918,2]
[338912013,1727064547462,-250.0,0.00021926,2]
[338912014,1727064547482,-250.0,0.00021984,2]
[338912015,1727064547502,-250.0,0.00022042,2]
[338912016,1727064547523,-250.0,0.000221,2]
[338912017,1727064547544,-250.0,0.00022158,2]
[338912018,1727064547565,-250.0,0.00022216,2]
[338912019,1727064547585,-250.0,0.00022274,2]
[338912020,1727064547605,-420.0,0.00023512,2]
[338912021,1727064547625,-500.0,0.00023573,2]
[338912022,1727064547646,-13396.85932954,0.00023576,2]
[338912024,1727064558113,-11503.14067046,0.00023576,2]
[338912025,1727064558134,-420.0,0.00023792,2]
[338912026,1727064558155,-500.0,0.00023867,2]
[338912027,1727064558175,-500.0,0.00023867,2]
[338912028,1727064558201,-210.97101483,0.00023914,2]
[338912029,1727064558221,-360.33420038,0.00023914,2]
[338912030,1727064558351,-500.0,0.00023914,2]
[338912031,1727064558371,-302.427733,0.000246,11]
[338912032,1727064558393,-200.0,0.00024658,15]
[338912033,1727064558414,-384.70231348,0.00024875,2]
[338912034,1727064558434,-1001.59760314,0.00024942,2]
[338912035,1727064558456,-958.71612975,0.00025,30]
[338912036,1727064558476,-150.49604997,0.00025,30]
[338912037,1727064560116,-349.50395003,0.00025,30]
[338912038,1727064560137,-500.0,0.00025,30]
[338912039,1727064560157,-500.0,0.00025,30]
[338912040,1727064560178,-514.99969714,0.00025,30]
[338912041,1727064560198,-593.39227111,0.00025237,2]
[338912042,1727064560220,-1000.0,0.00025237,2]
[338912043,1727064560242,-300.25445691,0.00025284,2]
[338912044,1727064560266,-500.0,0.00025547,2]
[338912045,1727064560290,-500.0,0.00025547,2]
[338912046,1727064560312,-500.0,0.00025547,2]
[338912047,1727064560337,-500.0,0.00025547,2]
[338912048,1727064560358,-500.0,0.00025547,2]
[338912049,1727064560380,-500.0,0.00025547,2]
[338912050,1727064560401,-500.0,0.00025547,2]
[338912051,1727064560426,-500.0,0.00025547,2]
[338912052,1727064560449,-500.0,0.00025547,2]
[338912053,1727064560470,-500.0,0.00025547,2]
[338912054,1727064560492,-500.0,0.00025547,2]
[338912055,1727064560513,-500.0,0.00025547,2]
[338912056,1727064560535,-500.0,0.00025547,2]
[338912057,1727064560556,-500.0,0.00025547,2]
[338912058,1727064560577,-500.0,0.00025547,2]
[338912059,1727064560598,-500.0,0.00025547,2]
[338912060,1727064560619,-500.0,0.00025547,2]
[338912061,1727064560640,-500.0,0.00025547,2]
[338912062,1727064560661,-500.0,0.00025547,2]
[338912063,1727064560684,-500.0,0.00025547,2]
[338912064,1727064560706,-500.0,0.00025547,2]
[338912065,1727064560728,-500.0,0.00025547,2]
[338912066,1727064560749,-500.0,0.00025547,2]
[338912067,1727064560770,-195.0,0.00025547,2]
[338912068,1727064560791,-389.62357719,0.00025547,2]
[338912107,1727064632300,-544.18441911,0.00024933,2]
[338912109,1727064632309,-2511.00316389,0.00025447,2]
[338912110,1727064632321,-128.84903685,0.00025447,2]
[338912111,1727064632336,-110.37642281,0.00025547,2]
[338912112,1727064632345,-262.14789769,0.00026352,2]
[338912113,1727064632395,-237.0077215,0.00026352,2]
[338912114,1727064632405,-248.85883638,0.0002648,2]
[338912115,1727064632414,-309.376,0.00027149,15]
[338912116,1727064632424,-191.32801247,0.00027149,15]
[338912117,1727064632434,-500.0,0.00027397,2]
[338912118,1727064632443,-231.08531861,0.00027397,5]
[338912119,1727064632452,-300.0,0.0002774,2]
[338912120,1727064632461,-300.0,0.0002774,2]
[338912121,1727064632471,-590.2563592,0.00027741,5]
[338912122,1727064632482,-908.37219219,0.00027741,5]
[338912123,1727064632492,-2639.85220071,0.00027797,2]
[338912124,1727064632504,-158.457753,0.00028988,7]
[338912125,1727064632514,-707.0506,0.0002946,30]
[338912126,1727064632524,-420.0,0.00029967,2]
[338912127,1727064632533,-410.936972,0.0003,7]
[338912128,1727064632542,-151.0,0.0003,120]
[338912129,1727064632551,-410.936972,0.0003,7]
[338912130,1727064632561,-2639.85220071,0.00030148,2]
[338912131,1727064632571,-664.0227197,0.00030322,2]
[338912132,1727064632580,-150.0,0.000304,2]
[338912133,1727064632590,-420.0,0.00030514,2]
[338912134,1727064632599,-151.0,0.00031589,120]
[338912135,1727064632608,-350.085338,0.00031824,2]
[338912136,1727064632618,-546.0,0.00032373,2]
[338912137,1727064632627,-1181.70454505,0.00032498,2]
[338912171,1727064639074,-347.5480074,0.00032498,2]
[338912172,1727064639091,-1110.59964826,0.00032498,2]
[338912173,1727064639101,-154.0,0.00033,2]
[338912174,1727064639111,-150.0,0.000331,14]
[338912175,1727064639121,-150.0,0.000331,14]
[338912176,1727064639131,-200.0,0.000331,14]
[338912177,1727064639141,-500.0,0.00033165,2]
[338912178,1727064639151,-151.0,0.00033178,120]
[338912179,1727064639160,-323.0,0.00033566,2]
[338912180,1727064639170,-1990.0,0.00034,120]
[338912181,1727064639179,-242.0,0.00034337,2]
[338912182,1727064639189,-410.936972,0.000344,14]
[338912183,1727064639198,-410.936972,0.000344,14]
[338912184,1727064639207,-596.28719242,0.0003447,5]
[338912185,1727064639216,-19413.3736108,0.0003447,5]
[338912186,1727064639226,-410.936972,0.0003451,14]
[338912187,1727064639235,-410.936972,0.0003451,14]
[338912188,1727064639244,-160.0,0.00034519,10]
[338912189,1727064639253,-410.936972,0.0003452,14]
[338912190,1727064639263,-410.936972,0.0003452,14]
[338912191,1727064639272,-155.0,0.00034521,2]
[338912192,1727064639281,-151.0,0.00034767,120]
[338912193,1727064639290,-500.0,0.00034848,7]
[338912194,1727064639299,-500.0,0.00034848,7]
[338912195,1727064639309,-355.0,0.00034848,7]
[338912196,1727064639318,-2639.85220071,0.00034849,2]
[338912197,1727064639327,-206.592591,0.000351,14]
[338912198,1727064639336,-400.0,0.00035616,2]
[338912199,1727064639346,-1295.409074,0.00035616,120]
[338912200,1727064639355,-151.0,0.00036356,120]
[338912201,1727064639364,-242.436,0.00036378,2]
[338912202,1727064639373,-410.936972,0.000368,14]
[338912203,1727064639382,-410.936972,0.000368,14]
[338912204,1727064639391,-500.0,0.00037068,10]
[338912205,1727064639400,-2639.85220071,0.00037199,2]
[338912206,1727064639409,-596.28719242,0.00037286,5]
[338912207,1727064639418,-19413.3736108,0.00037286,5]
[338912208,1727064639428,-206.592591,0.000373,14]
[338912209,1727064639438,-500.0,0.00037306,120]
[338912210,1727064639447,-500.0,0.00037306,120]
[338912211,1727064639456,-500.0,0.00037306,120]
[338912212,1727064639464,-500.0,0.00037306,120]
[338912213,1727064639474,-500.0,0.00037306,120]
[338912214,1727064639483,-500.0,0.00037306,120]
[338912215,1727064639494,-500.0,0.00037306,120]
[338912216,1727064639504,-500.0,0.00037306,120]
[338912217,1727064639513,-500.0,0.00037306,120]
[338912218,1727064639522,-500.0,0.00037306,120]
[338912219,1727064639531,-500.0,0.00037306,120]
[338912220,1727064639540,-500.0,0.00037306,120]
[338912221,1727064639549,-500.0,0.00037306,120]
[338912222,1727064639558,-500.0,0.00037306,120]
[338912223,1727064639568,-500.0,0.00037306,120]
[338912224,1727064639577,-500.0,0.00037306,120]
[338912225,1727064639586,-500.0,0.00037306,120]
[338912226,1727064639596,-500.0,0.00037306,120]
[338912227,1727064639604,-500.0,0.00037306,120]
[338912228,1727064639613,-596.92,0.00037306,120]
[338912229,1727064639623,-490.65884246,0.00037306,120]
[338912230,1727064639752,-9.34115754,0.00037306,120]
[338912231,1727064639766,-500.0,0.00037306,120]
[338912232,1727064639775,-565.77,0.00037306,120]
[338912233,1727064639784,-152.43480147,0.00037385,21]
[338912234,1727064639794,-206.592584,0.0003739,14]
[338912235,1727064639804,-410.936972,0.0003739,14]
[338912236,1727064639813,-410.936972,0.0003739,14]
[338912237,1727064639823,-418.00751299,0.0003787,2]
[338912282,1727064643509,-384.92413537,0.0003787,2]
[338912284,1727064643520,-955.0,0.0003787,2]
[338912389,1727064646384,-1685.45,0.0003787,2]
[338912390,1727064646415,-47.4815885,0.0003787,2]
[338912391,1727064646931,-93.59359092,0.0003787,2]
[338912404,1727064903229,9505.58128916,0.000199,2]